Workbook

Sheet Tabelle1
A1: 5 | E1: =Tabelle3!A2 -> Kaltenleutgeben
B2: Abschluss | G2: Budget | H2: MFP
A3: VHH | B3: Ende 2017 | C3: Ende 2018 | D3: Ende 2019 | E3: Ende 2020 | F3: Ende 2021 | G3: Ende 2022 | H3: Ende 2023 | I3: Ende 2024 | J3: Ende 2025 | K3: Ende 2026
A5: A.II Anlagevermögen | B5: 0 | C5: 0 | D5: =Tabelle3!G2 -> 58483531.54 | E5: =Tabelle3!G3 -> 58371613.85 | F5: =Tabelle3!G4 -> 57915377.94 | G5: =Tabelle3!G5 -> 58066177.94 | H5: =Tabelle3!G6 -> 60866277.94 | I5: =Tabelle3!G7 -> 60791619.9 | J5: =Tabelle3!G8 -> 60052661.86 | K5: =Tabelle3!G9 -> 59327303.82
A6: sonstige | B6: =B8-B7-B5 -> 0 | C6: =C8-C7-C5 -> 0 | D6: =D8-D7-D5 -> 2303172.23 | E6: =E8-E7-E5 -> 2724162.13 | F6: =F8-F7-F5 -> 2602443.59 | G6: =G8-G7-G5 -> 2975079.67 | H6: =H8-H7-H5 -> 1995379.67 | I6: =I8-I7-I5 -> 2331737.71 | J6: 2975495.75 | K6: =K8-K7-K5 -> 2893153.79
A7: B.III Geld | B7: 0 | C7: 0 | D7: =Tabelle3!H2 -> 2761831.32 | E7: =Tabelle3!H3 -> 2560061.8 | F7: =Tabelle3!H4 -> 3405699.46 | G7: =Tabelle3!H5 -> 3079799.46 | H7: =Tabelle3!H6 -> 753899.46 | I7: =Tabelle3!H7 -> 1036899.46 | J7: =Tabelle3!H8 -> 1260099.46 | K7: =Tabelle3!H9 -> 1443499.46
A8: Summe Aktiva | B8: =B12 -> 0 | C8: =C12 -> 0 | D8: =D12 -> 63548535.09 | E8: =E12 -> 63655837.78 | F8: =F12 -> 63923520.99 | G8: =G12 -> 64121057.07 | H8: 63615557.07 | I8: 64160257.07 | J8: 64288257.07 | K8: =K12 -> 63663957.07
A10: C+D Nettovermögen (EK) | B10: 0 | C10: 0 | D10: =Tabelle3!I2+Tabelle3!J2 -> 58916573.96 | E10: =Tabelle3!I3+Tabelle3!J3 -> 59334937.46 | F10: =Tabelle3!I4+Tabelle3!J4 -> 59745655.73 | G10: =Tabelle3!I5+Tabelle3!J5 -> 60012455.73 | H10: =Tabelle3!I6+Tabelle3!J6 -> 59872455.73 | I10: =Tabelle3!I7+Tabelle3!J7 -> 59791055.73 | J10: =Tabelle3!I8+Tabelle3!J8 -> 59647355.73 | K10: =Tabelle3!I9+Tabelle3!J9 -> 59451755.73
A11: E+F Fremdkapital | B11: =B27 -> 0 | C11: =C27 -> 0 | D11: =Tabelle3!K2+Tabelle3!L2 -> 4631961.13 | E11: =Tabelle3!K3+Tabelle3!L3 -> 4320900.32 | F11: =Tabelle3!K4+Tabelle3!L4 -> 4177865.26 | G11: =Tabelle3!K5+Tabelle3!L5 -> 4108601.34 | H11: =Tabelle3!K6+Tabelle3!L6 -> 3743101.34 | I11: =Tabelle3!K7+Tabelle3!L7 -> 4369201.34 | J11: =Tabelle3!K8+Tabelle3!L8 -> 4640901.34 | K11: =Tabelle3!K9+Tabelle3!L9 -> 4212201.34
A12: Summe Passiva | B12: =SUM(B10:B11) -> 0 | C12: 0 | D12: =SUM(D10:D11) -> 63548535.09 | E12: =SUM(E10:E11) -> 63655837.78 | F12: =SUM(F10:F11) -> 63923520.99 | G12: =SUM(G10:G11) -> 64121057.07 | H12: =SUM(H10:H11) -> 63615557.07 | I12: =SUM(I10:I11) -> 64160257.07 | J12: 64288257.07 | K12: =SUM(K10:K11) -> 63663957.07
G14: Budget | H14: MFP
B15: 2017 | C15: 2018 | D15: 2019 | E15: 2020 | F15: 2021 | G15: 2022 | H15: 2023 | I15: 2024 | J15: 2025 | K15: 2026
A16: EHH: | B16: 2017 | C16: 2018 | D16: Jahr 2019 | E16: Jahr 2020 | F16: Jahr 2021 | G16: Jahr 2022 | H16: Jahr 2023 | I16: Jahr 2024 | J16: Jahr 2025 | K16: Jahr 2026
A17: SA0 | B17: 0 | C17: 0 | D17: =Tabelle3!M2 -> 0 | E17: =Tabelle3!M3 -> 0 | F17: =Tabelle3!M4 -> 422461 | G17: =Tabelle3!M5 -> 266800 | H17: =Tabelle3!M6 -> -140000 | I17: =Tabelle3!M7 -> -81400 | J17: =Tabelle3!M8 -> -143700 | K17: =Tabelle3!M9 -> -195600
A18: MVAG 2226 Afa | D18: =Tabelle3!Q2 -> 0 | E18: =Tabelle3!Q3 -> 847742.17 | F18: =Tabelle3!Q4 -> 899783.52 | G18: =Tabelle3!Q5 -> 921700 | H18: =Tabelle3!Q6 -> 917300 | I18: =Tabelle3!Q7 -> 791458.04 | J18: =Tabelle3!Q8 -> 756458.04 | K18: =Tabelle3!Q9 -> 743558.04
A19: FHH:
A20: SA2 (investiver HH) | G20: =Tabelle3!O5 -> -1072500 | H20: =Tabelle3!O6 -> -3717400 | I20: =Tabelle3!O7 -> -716800 | J20: =Tabelle3!O8 -> -17500 | K20: =Tabelle3!O9 -> -18200
A21: SA4 (Finanzierungstätigkeit) | G21: =Tabelle3!P5 -> -365500 | H21: =Tabelle3!P6 -> 626100 | I21: =Tabelle3!P7 -> 271700 | J21: =Tabelle3!P8 -> -428700 | K21: =Tabelle3!P9 -> -398700
A22: SA5 (Eigene ZMB Veränd) | G22: =G20+G21+Tabelle3!N5 -> -325900 | H22: =H20+H21+Tabelle3!N6 -> -2325900 | I22: =I20+I21+Tabelle3!N7 -> 283000 | J22: =J20+J21+Tabelle3!N8 -> 223200 | K22: =K20+K21+Tabelle3!N9 -> 183400
A23: alte VRV:
A24: Querschnitt Saldo1 | C24: 0 | D24: 0
A25: Querschnitt Saldo 2 | C25: 0 | D25: 0
A26: Quscherschnitt Saldo 4 | C26: 0 | D26: 0
A27: Schuldennachweis Schuldenstand Jahresende | B27: 0 | C27: 0
A29: EK Quote | D29: =D10/D12 -> 0.9271114413 | E29: =E10/E12 -> 0.9321209103 | F29: 0.9346427544 | G29: 0.9359243043 | H29: 0.9411605979 | I29: 0.9319017482 | J29: 0.9278110568 | K29: =K10/K12 -> 0.9338369537
A30: FK Quote | D30: =D11/D12 -> 0.0728885587 | E30: =E11/E12 -> 0.06787908966 | F30: 0.06535724558 | G30: 0.06407569569 | H30: 0.05883940206 | I30: 0.06809825178 | J30: =J11/J12 -> 0.07218894323 | K30: 0.06616304631
B31: 0 | C31: 1 | D31: 2 | E31: 3 | F31: 4 | G31: 5 | H31: 6 | I31: 7 | J31: 8 | K31: 9
E32: Gew. Jahr | F32: =A1 -> 5
A33: Kurzbefund Zukunftsplanung:
A34: idF. n. angefr.
D36: Aktiva | E36: Passiva
D37: =SUM(IF(Tabelle1!$B$31:$K$31=Tabelle1!$F$32,Tabelle1!B7:K7,0)) -> 3079799.46 | E37: =SUM(IF(Tabelle1!$B$31:$K$31=Tabelle1!$F$32,Tabelle1!B11:K11,0)) -> 4108601.34
D38: =SUM(IF(Tabelle1!$B$31:$K$31=Tabelle1!$F$32,Tabelle1!B6:K6,0)) -> 2975079.67 | E38: =SUM(IF(Tabelle1!$B$31:$K$31=Tabelle1!$F$32,Tabelle1!B10:K10,0)) -> 60012455.73
D39: =SUM(IF(Tabelle1!$B$31:$K$31=Tabelle1!$F$32,Tabelle1!B5:K5,0)) -> 58066177.94
D40: =SUM(IF(Tabelle1!$B$31:$K$31=Tabelle1!$F$32,Tabelle1!B17:K17,0)) -> 266800
D41: =SUM(IF(Tabelle1!$B$31:$K$31=Tabelle1!$F$32,Tabelle1!B15:K15,0)) -> 2022
D42: =SUM(IF(Tabelle1!$B$31:$K$31=Tabelle1!$F$32,Tabelle1!B29:K29,0)) -> 0.9359243043
D43: =SUM(IF(Tabelle1!$B$31:$K$31=Tabelle1!$F$32,Tabelle1!B30:K30,0)) -> 0.06407569569

Sheet Tabelle2
A1: 5 | C1: ="Haushaltsanalyse " & Tabelle3!A2 -> Haushaltsanalyse Kaltenleutgeben
A3: Jahr | B3: =Tabelle1!D41 -> 2022
A4: Nachhaltigkeitspotential SA0 | B4: =Tabelle1!D40 -> 266800
A5: 8-Jahresmittel SA0 | B5: =SUM(Tabelle3!M2:M9)/8 -> 16070.125
A6: Abweichung | B6: =B4-B5 -> 250729.875
A8: Nettoverm-Qu% | B8: =Tabelle1!D42 -> 0.9359243043
A9: Fremdk-Qu% | B9: =Tabelle1!D43 -> 0.06407569569
A11: Anlagevermögen | B11: =Tabelle1!D39 -> 58066177.94
A12: Fremdkapital | B12: =Tabelle1!E37 -> 4108601.34

Sheet Tabelle3
A1: GemName | B1: ID | C1: WP_submissionn | D1: GKz | E1: Jahr | F1: DS_Art | G1: anlagev | H1: geldv | I1: nettov | J1: sonderp | K1: langfr | L1: kurzfr | M1: SA0 | N1: SA1 | O1: SA2 | P1: SA4 | Q1: abschr2226 | R1: bemerkung
A2: Kaltenleutgeben | B2: 32 | C2: 9 | D2: 31713 | E2: 2019 | F2: 4 | G2: 58483531.54 | H2: 2761831.32 | I2: 58102341.68 | J2: 814232.28 | K2: 4218285.69 | L2: 413675.44 | M2: 0 | Q2: 0
A3: Kaltenleutgeben | B3: 57 | C3: 20 | D3: 30603 | E3: 2020 | F3: 4 | G3: 58371613.85 | H3: 2560061.8 | I3: 58333588.43 | J3: 1001349.03 | K3: 3801337.79 | L3: 519562.53 | Q3: =882358.28-34616.11 -> 847742.17 | R3: 916974.39 | S3: =Q3-R3 -> -69232.22
A4: Kaltenleutgeben | B4: 60 | C4: 23 | D4: 30603 | E4: 2021 | F4: 4 | G4: 57915377.94 | H4: 3405699.46 | I4: 58756049.43 | J4: 989606.3 | K4: 3746580.84 | L4: 431284.42 | M4: 422461 | N4: 1337681.75 | O4: -463943.11 | P4: -69263.92 | Q4: =-37720.98+937504.5 -> 899783.52 | R4: 975225.48 | S4: =Q4-R4 -> -75441.96
A5: Kaltenleutgeben | B5: 34 | C5: 26 | D5: 30603 | E5: 2022 | F5: 3 | G5: =G4-O5-Q5 -> 58066177.94 | H5: =H4+N5+O5+P5 -> 3079799.46 | I5: =I4+M5 -> 59022849.43 | J5: 989606.3 | K5: =K4+P4 -> 3677316.92 | L5: 431284.42 | M5: 266800 | N5: 1112100 | O5: -1072500 | P5: -365500 | Q5: 921700
A6: Kaltenleutgeben | B6: 35 | C6: 28 | D6: 30603 | E6: 2023 | F6: 3 | G6: =G5-O6-Q6 -> 60866277.94 | H6: =H5+N6+O6+P6 -> 753899.46 | I6: =I5+M6 -> 58882849.43 | J6: 989606.3 | K6: =K5+P5 -> 3311816.92 | L6: 431284.42 | M6: -140000 | N6: 765400 | O6: -3717400 | P6: 626100 | Q6: 917300
A7: Kaltenleutgeben | B7: 36 | C7: 29 | D7: 30603 | E7: 2024 | F7: 3 | G7: 60791619.9 | H7: 1036899.46 | I7: 58801449.43 | J7: 989606.3 | K7: 3937916.92 | L7: 431284.42 | M7: -81400 | N7: 728100 | O7: -716800 | P7: 271700 | Q7: =866900+S4 -> 791458.04
A8: Kaltenleutgeben | B8: 37 | C8: 30 | D8: 30603 | E8: 2025 | F8: 3 | G8: 60052661.86 | H8: 1260099.46 | I8: 58657749.43 | J8: 989606.3 | K8: 4209616.92 | L8: 431284.42 | M8: -143700 | N8: 669400 | O8: -17500 | P8: -428700 | Q8: =831900+S4 -> 756458.04
A9: Kaltenleutgeben | B9: 38 | C9: 31 | D9: 30603 | E9: 2026 | F9: 3 | G9: 59327303.82 | H9: 1443499.46 | I9: 58462149.43 | J9: 989606.3 | K9: 3780916.92 | L9: 431284.42 | M9: -195600 | N9: 600300 | O9: -18200 | P9: -398700 | Q9: =819000+S4 -> 743558.04
I13: =I2+J2 -> 58916573.96
I14: =I3+J3 -> 59334937.46
I15: 59745655.73
I16: =I5+J5 -> 60012455.73
I17: 0 | J17: =SUM(I13:I17)/4 -> 59502405.72
